fUST/lending_fUST_20240416
["ID","MTS","AMOUNT","RATE_DAILY","PERIOD"]
[322688714,1713217841904,-500.0,0.00030684,7]
[322688716,1713217841913,-959.1,0.00030684,7]
[322688718,1713217841922,-500.0,0.00030684,7]
[322688721,1713217841931,-500.0,0.00030684,7]
[322688723,1713217841940,-576.34,0.00030684,7]
[322688725,1713217841949,-523.59459328,0.00030684,7]
[322688726,1713217841958,-238.07850354,0.00030684,7]
[322688728,1713217841967,-516.80034619,0.00030684,7]
[322688730,1713217841975,-1381.05,0.00030684,7]
[322688732,1713217841985,-510.77,0.00030684,7]
[322688734,1713217841993,-500.0,0.00030684,7]
[322688736,1713217842002,-1122.09,0.00030684,7]
[322688738,1713217842011,-500.0,0.00030684,7]
[322688740,1713217842020,-500.0,0.00030684,7]
[322688742,1713217842029,-500.0,0.00030684,7]
[322688744,1713217842038,-500.0,0.00030684,7]
[322688746,1713217842047,-500.0,0.00030684,7]
[322688748,1713217842056,-500.0,0.00030684,7]
[322688750,1713217842065,-643.62,0.00030684,7]
[322688752,1713217842074,-500.0,0.00030684,7]
[322688754,1713217842082,-500.0,0.00030684,7]
[322688756,1713217842091,-500.0,0.00030684,7]
[322688758,1713217842102,-1286.94,0.00030684,7]
[322688760,1713217842110,-630.67273205,0.00030684,7]
[322688762,1713217842119,-500.0,0.00030684,7]
[322688764,1713217842129,-951.22,0.00030684,7]
[322688766,1713217842138,-357.75840675,0.00030684,7]
[322688768,1713217842147,-500.0,0.00030684,7]
[322688770,1713217842156,-388.20097583,0.00030684,7]
[322688772,1713217842165,-500.0,0.00030684,7]
[322688774,1713217842174,-529.27,0.00030684,7]
[322688776,1713217842183,-425.9150773,0.00030684,7]
[322688778,1713217842192,-500.0,0.00030684,7]
[322688780,1713217842201,-500.0,0.00030684,7]
[322688782,1713217842209,-880.22,0.00030684,7]
[322688784,1713217842218,-500.0,0.00030684,7]
[322688786,1713217842229,-500.0,0.00030684,7]
[322688801,1713217842348,-500.0,0.00030684,7]
[322688803,1713217842358,-500.0,0.00030684,7]
[322688805,1713217842367,-500.61,0.00030684,7]
[322688807,1713217842376,-1402.37,0.00030684,7]
[322688809,1713217842385,-500.0,0.00030684,7]
[322688811,1713217842394,-500.0,0.00030684,7]
[322688813,1713217842404,-500.0,0.00030684,7]
[322688815,1713217842413,-500.0,0.00030684,7]
[322688817,1713217842425,-564.15001578,0.00030684,7]
[322688819,1713217842434,-500.0,0.00030684,7]
[322688821,1713217842444,-500.0,0.00030684,7]
[322688823,1713217842454,-500.0,0.00030684,7]
[322688825,1713217842463,-500.22716956,0.00030684,7]
[322688827,1713217842472,-500.0,0.00030684,7]
[322688829,1713217842481,-500.0,0.00030684,7]
[322688831,1713217842489,-730.09,0.00030684,7]
[322688833,1713217842498,-500.0,0.00030684,7]
[322688835,1713217842507,-734.85,0.00030684,7]
[322688837,1713217842516,-1101.24,0.00030684,7]
[322688839,1713217842525,-608.43682549,0.00030684,7]
[322688841,1713217842534,-500.0,0.00030684,7]
[322688843,1713217842543,-500.0,0.00030684,7]
[322688846,1713217842552,-500.0,0.00030684,7]
[322688848,1713217842563,-500.0,0.00030684,7]
[322688850,1713217842574,-506.0,0.00030684,7]
[322688852,1713217842584,-500.0,0.00030684,7]
[322688853,1713217842593,-781.76,0.00030684,7]
[322688856,1713217842604,-687.89,0.00030684,7]
[322688858,1713217842614,-500.0,0.00030684,7]
[322688860,1713217842623,-500.0,0.00030684,7]
[322688862,1713217842632,-500.0,0.00030684,7]
[322688864,1713217842641,-1708.2,0.00030684,7]
[322688866,1713217842651,-500.0,0.00030684,7]
[322688868,1713217842661,-608.91,0.00030684,7]
[322688870,1713217842670,-1041.94,0.00030684,7]
[322688872,1713217842679,-500.0,0.00030684,7]
[322688874,1713217842688,-500.0,0.00030684,7]
[322688876,1713217842697,-477.24550864,0.00030684,7]
[322688878,1713217842706,-564.16,0.00030684,7]
[322688880,1713217842716,-13032.94,0.00030684,7]
[322688882,1713217842725,-500.0,0.00030684,7]
[322688884,1713217842738,-782.36,0.00030684,7]
[322688886,1713217842746,-500.0,0.00030684,7]
[322688888,1713217842756,-500.0,0.00030684,7]
[322688890,1713217842765,-891.7,0.00030684,7]
[322688891,1713217842774,-536.06,0.00030684,7]
[322688893,1713217842783,-500.0,0.00030684,7]
[322688895,1713217842792,-500.0,0.00030684,7]
[322688897,1713217842801,-500.0,0.00030684,7]
[322688899,1713217842810,-709.53,0.00030684,7]
[322688902,1713217842819,-1888.84,0.00030684,7]
[322688904,1713217842829,-1858.51,0.00030684,7]
[322688906,1713217842838,-500.0,0.00030684,7]
[322688908,1713217842848,-715.8,0.00030684,7]
[322688910,1713217842857,-749.6,0.00030684,7]
[322688912,1713217842866,-500.0,0.00030684,7]
[322688914,1713217842876,-500.0,0.00030684,7]
[322688916,1713217842885,-529.32,0.00030684,7]
[322688918,1713217842894,-500.0,0.00030684,7]
[322688920,1713217842903,-500.0,0.00030684,7]
[322688922,1713217842912,-500.0,0.00030684,7]
[322688924,1713217842921,-500.0,0.00030684,7]
[322688926,1713217842930,-500.0,0.00030684,7]
[322688928,1713217842940,-500.0,0.00030684,7]
[322688930,1713217842951,-223.55058133,0.00030684,7]
[322688932,1713217842961,-500.0,0.00030684,7]
[322688935,1713217842970,-500.0,0.00030684,7]
[322688939,1713217842979,-500.0,0.00030684,7]
[322688940,1713217842989,-500.0,0.00030684,7]
[322688942,1713217842997,-500.0,0.00030684,7]
[322688944,1713217843007,-852.43,0.00030684,7]
[322688946,1713217843016,-500.0,0.00030684,7]
[322688949,1713217843026,-500.0,0.00030684,7]
[322688951,1713217843034,-3341.63,0.00030684,7]
[322688953,1713217843045,-2111.01,0.00030684,7]
[322688956,1713217843055,-500.0,0.00030684,7]
[322688957,1713217843064,-1091.16,0.00030684,7]
[322688960,1713217843074,-1238.66,0.00030684,7]
[322688962,1713217843084,-500.0,0.00030684,7]
[322688964,1713217843093,-500.0,0.00030684,7]
[322688967,1713217843104,-500.0,0.00030684,7]
[322688971,1713217843113,-500.0,0.00030684,7]
[322688975,1713217843123,-512.02,0.00030684,7]
[322688981,1713217843133,-621.69,0.00030684,7]
[322688987,1713217843143,-500.0,0.00030684,7]
[322688992,1713217843152,-532.25,0.00030684,7]
[322688996,1713217843162,-500.0,0.00030684,7]
[322688999,1713217843171,-1942.77,0.00030684,7]
[322689003,1713217843180,-500.0,0.00030684,7]
[322689010,1713217843190,-500.0,0.00030684,7]
[322689013,1713217843199,-8409.79,0.00030684,7]
[322689017,1713217843209,-693.14,0.00030684,7]
[322689020,1713217843218,-774.38,0.00030684,7]
[322689023,1713217843227,-1859.06,0.00030684,7]
[322689026,1713217843236,-960.29,0.00030684,7]
[322689028,1713217843245,-500.0,0.00030684,7]
[322689031,1713217843254,-996.72,0.00030684,7]
[322689034,1713217843262,-500.0,0.00030684,7]
[322689037,1713217843271,-500.0,0.00030684,7]
[322689039,1713217843280,-532.15,0.00030684,7]
[322689041,1713217843289,-1440.78,0.00030684,7]
[322689044,1713217843298,-645.97,0.00030684,7]
[322689047,1713217843307,-500.0,0.00030684,7]
[322689050,1713217843316,-1308.59,0.00030684,7]
[322689054,1713217843326,-2789.19,0.00030684,7]
[322689057,1713217843335,-2681.09,0.00030684,7]
[322689059,1713217843344,-962.04,0.00030684,7]
[322689062,1713217843355,-191.87034266,0.00030684,7]
[322689065,1713217843364,-227.642,0.00030772,4]
[322689068,1713217843374,-227.642,0.00030772,4]
[322689071,1713217843383,-227.643,0.00030772,4]
[322689074,1713217843393,-227.642,0.00030772,4]
[322689077,1713217843402,-227.643,0.00030772,4]
[322689081,1713217843411,-587.0,0.00030778,2]
[322689083,1713217843421,-1401.82249662,0.00030858,2]
[322689087,1713217843430,-173.44310969,0.00030858,2]
[322689090,1713217843439,-500.0,0.00030958,7]
[322689092,1713217843449,-500.0,0.00030958,7]
[322689095,1713217843458,-959.1,0.00030958,7]
[322689098,1713217843467,-500.0,0.00030958,7]
[322689101,1713217843476,-500.0,0.00030958,7]
[322689104,1713217843485,-576.34,0.00030958,7]
[322689108,1713217843495,-1381.05,0.00030958,7]
[322689110,1713217843504,-510.77,0.00030958,7]
[322689114,1713217843517,-500.0,0.00030958,7]
[322689116,1713217843526,-1122.09,0.00030958,7]
[322689119,1713217843536,-500.0,0.00030958,7]
[322689122,1713217843545,-500.0,0.00030958,7]
[322689126,1713217843554,-500.0,0.00030958,7]
[322689129,1713217843564,-500.0,0.00030958,7]
[322689132,1713217843577,-500.0,0.00030958,7]
[322689134,1713217843587,-500.0,0.00030958,7]
[322689137,1713217843596,-643.62,0.00030958,7]
[322689140,1713217843606,-500.0,0.00030958,7]
[322689143,1713217843615,-500.0,0.00030958,7]
[322689146,1713217843624,-500.0,0.00030958,7]
[322689148,1713217843633,-1286.94,0.00030958,7]
[322689151,1713217843642,-500.0,0.00030958,7]
[322689155,1713217843653,-951.22,0.00030958,7]
[322689157,1713217843662,-500.0,0.00030958,7]
[322689161,1713217843671,-500.0,0.00030958,7]
[322689164,1713217843681,-529.27,0.00030958,7]
[322689167,1713217843690,-500.0,0.00030958,7]
[322689170,1713217843699,-500.0,0.00030958,7]
[322689173,1713217843709,-880.22,0.00030958,7]
[322689175,1713217843719,-500.0,0.00030958,7]
[322689180,1713217843728,-539.95891349,0.00030958,7]
[322689183,1713217843737,-500.0,0.00030958,7]
[322689187,1713217843747,-500.0,0.00030958,7]
[322689190,1713217843756,-500.61,0.00030958,7]
[322689192,1713217843765,-1402.37,0.00030958,7]
[322689195,1713217843775,-612.24934694,0.00030958,7]
[322689199,1713217843784,-500.0,0.00030958,7]
[322689202,1713217843793,-500.0,0.00030958,7]
[322689204,1713217843802,-500.0,0.00030958,7]
[322689207,1713217843811,-500.0,0.00030958,7]
[322689212,1713217843820,-500.0,0.00030958,7]
[322689215,1713217843829,-500.0,0.00030958,7]
[322689219,1713217843838,-500.0,0.00030958,7]
[322689223,1713217843848,-500.0,0.00030958,7]
[322689227,1713217843858,-730.09,0.00030958,7]
[322689231,1713217843867,-500.0,0.00030958,7]
[322689235,1713217843876,-734.85,0.00030958,7]
[322689239,1713217843885,-1101.24,0.00030958,7]
[322689242,1713217843894,-500.0,0.00030958,7]
[322689245,1713217843903,-500.0,0.00030958,7]
[322689248,1713217843912,-500.0,0.00030958,7]
[322689252,1713217843921,-500.0,0.00030958,7]
[322689254,1713217843930,-506.0,0.00030958,7]
[322689257,1713217843939,-500.0,0.00030958,7]
[322689260,1713217843949,-781.76,0.00030958,7]
[322689263,1713217843958,-687.89,0.00030958,7]
[322689266,1713217843967,-500.0,0.00030958,7]
[322689269,1713217843976,-500.0,0.00030958,7]
[322689271,1713217843984,-500.0,0.00030958,7]
[322689272,1713217843993,-1708.2,0.00030958,7]
[322689274,1713217844002,-500.0,0.00030958,7]
[322689276,1713217844011,-608.91,0.00030958,7]
[322689278,1713217844020,-1041.94,0.00030958,7]
[322689280,1713217844028,-500.0,0.00030958,7]
[322689282,1713217844037,-500.0,0.00030958,7]
[322689284,1713217844046,-13032.94,0.00030958,7]
[322689286,1713217844055,-500.0,0.00030958,7]
[322689288,1713217844064,-782.36,0.00030958,7]
[322689290,1713217844073,-500.0,0.00030958,7]
[322689292,1713217844082,-500.0,0.00030958,7]
[322689294,1713217844091,-891.7,0.00030958,7]
[322689296,1713217844100,-536.06,0.00030958,7]
[322689298,1713217844109,-500.0,0.00030958,7]
[322689300,1713217844118,-500.0,0.00030958,7]
[322689302,1713217844127,-252.02198214,0.00030958,7]
[322689304,1713217844136,-709.53,0.00030958,7]
[322689306,1713217844145,-1888.84,0.00030958,7]
[322689308,1713217844154,-1858.51,0.00030958,7]
[322689310,1713217844164,-500.0,0.00030958,7]
[322689312,1713217844172,-715.8,0.00030958,7]
[322689314,1713217844181,-749.6,0.00030958,7]
[322689316,1713217844190,-500.0,0.00030958,7]
[322689318,1713217844199,-500.0,0.00030958,7]
[322689320,1713217844208,-500.0,0.00030958,7]
[322689322,1713217844217,-500.0,0.00030958,7]
[322689324,1713217844226,-500.0,0.00030958,7]
[322689326,1713217844235,-500.0,0.00030958,7]
[322689328,1713217844244,-500.0,0.00030958,7]
[322689330,1713217844254,-500.0,0.00030958,7]
[322689332,1713217844265,-500.0,0.00030958,7]
[322689334,1713217844274,-500.0,0.00030958,7]
[322689336,1713217844283,-500.0,0.00030958,7]
[322689338,1713217844292,-500.0,0.00030958,7]
[322689340,1713217844301,-852.43,0.00030958,7]
[322689342,1713217844310,-500.0,0.00030958,7]
[322689344,1713217844321,-500.0,0.00030958,7]
[322689346,1713217844330,-3341.63,0.00030958,7]
[322689348,1713217844339,-2111.01,0.00030958,7]
[322689350,1713217844348,-500.0,0.00030958,7]
[322689352,1713217844358,-1091.16,0.00030958,7]
[322689354,1713217844366,-1238.66,0.00030958,7]
[322689356,1713217844376,-500.0,0.00030958,7]
[322689358,1713217844385,-500.0,0.00030958,7]
[322689360,1713217844394,-500.0,0.00030958,7]
[322689361,1713217844403,-500.0,0.00030958,7]
[322689363,1713217844412,-512.02,0.00030958,7]
[322689365,1713217844421,-621.69,0.00030958,7]
[322689367,1713217844430,-500.0,0.00030958,7]
[322689369,1713217844439,-532.25,0.00030958,7]
[322689371,1713217844448,-500.0,0.00030958,7]
[322689373,1713217844457,-1942.77,0.00030958,7]
[322689375,1713217844466,-500.0,0.00030958,7]
[322689377,1713217844476,-500.0,0.00030958,7]
[322689379,1713217844485,-8409.79,0.00030958,7]
[322689381,1713217844494,-693.14,0.00030958,7]
[322689383,1713217844503,-774.38,0.00030958,7]
[322689385,1713217844512,-1859.06,0.00030958,7]
[322689387,1713217844522,-960.29,0.00030958,7]
[322689390,1713217844531,-500.0,0.00030958,7]
[322689391,1713217844540,-996.72,0.00030958,7]
[322689393,1713217844550,-500.0,0.00030958,7]
[322689395,1713217844560,-500.0,0.00030958,7]
[322689397,1713217844570,-532.15,0.00030958,7]
[322689399,1713217844580,-1440.78,0.00030958,7]
[322689401,1713217844588,-645.97,0.00030958,7]
[322689404,1713217844599,-500.0,0.00030958,7]
[322689405,1713217844610,-1308.59,0.00030958,7]
[322689407,1713217844619,-2789.19,0.00030958,7]
[322689409,1713217844628,-2681.09,0.00030958,7]
[322689411,1713217844638,-962.04,0.00030958,7]
[322689413,1713217844647,-10625.72892433,0.00031,5]
[322689415,1713217844658,-500.0,0.00031232,7]
[322689417,1713217844667,-500.0,0.00031232,7]
[322689419,1713217844677,-959.1,0.00031232,7]
[322689421,1713217844686,-500.0,0.00031232,7]
[322689423,1713217844695,-500.0,0.00031232,7]
[322689425,1713217844704,-576.34,0.00031232,7]
[322689427,1713217844713,-1381.05,0.00031232,7]
[322689429,1713217844722,-510.77,0.00031232,7]
[322689431,1713217844731,-500.0,0.00031232,7]
[322689433,1713217844740,-1122.09,0.00031232,7]
[322689435,1713217844749,-500.0,0.00031232,7]
[322689437,1713217844758,-500.0,0.00031232,7]
[322689439,1713217844767,-500.0,0.00031232,7]
[322689441,1713217844777,-500.0,0.00031232,7]
[322689443,1713217844786,-500.0,0.00031232,7]
[322689445,1713217844795,-500.0,0.00031232,7]
[322689447,1713217844804,-643.62,0.00031232,7]
[322689449,1713217844813,-500.0,0.00031232,7]
[322689451,1713217844822,-585.32267984,0.00031232,7]
[322689453,1713217844832,-500.0,0.00031232,7]
[322689455,1713217844841,-1286.94,0.00031232,7]
[322689457,1713217844852,-500.0,0.00031232,7]
[322689459,1713217844861,-951.22,0.00031232,7]
[322689460,1713217844870,-500.0,0.00031232,7]
[322689461,1713217844879,-500.0,0.00031232,7]
[322689462,1713217844888,-529.27,0.00031232,7]
[322689463,1713217844897,-500.0,0.00031232,7]
[322689464,1713217844906,-500.0,0.00031232,7]
[322689465,1713217844915,-880.22,0.00031232,7]
[322689466,1713217844925,-500.0,0.00031232,7]
[322689467,1713217844934,-500.0,0.00031232,7]
[322689468,1713217844944,-500.0,0.00031232,7]
[322689469,1713217844953,-500.61,0.00031232,7]
[322689470,1713217844962,-1402.37,0.00031232,7]
[322689471,1713217844972,-500.0,0.00031232,7]
[322689472,1713217844981,-268.41926394,0.00031232,7]
[322689473,1713217844990,-500.0,0.00031232,7]
[322689474,1713217844999,-500.0,0.00031232,7]
[322689475,1713217845008,-500.0,0.00031232,7]
[322689476,1713217845017,-500.0,0.00031232,7]
[322689477,1713217845026,-500.0,0.00031232,7]
[322689478,1713217845035,-500.0,0.00031232,7]
[322689479,1713217845044,-730.09,0.00031232,7]
[322689480,1713217845054,-500.0,0.00031232,7]
[322689481,1713217845063,-734.85,0.00031232,7]
[322689482,1713217845072,-1101.24,0.00031232,7]
[322689483,1713217845082,-500.0,0.00031232,7]
[322689484,1713217845092,-500.0,0.00031232,7]
[322689485,1713217845102,-500.0,0.00031232,7]
[322689486,1713217845111,-500.0,0.00031232,7]
[322689487,1713217845121,-506.0,0.00031232,7]
[322689488,1713217845131,-500.0,0.00031232,7]
[322689489,1713217845140,-781.76,0.00031232,7]
[322689490,1713217845150,-687.89,0.00031232,7]
[322689491,1713217845159,-500.0,0.00031232,7]
[322689492,1713217845168,-500.0,0.00031232,7]
[322689493,1713217845178,-500.0,0.00031232,7]
[322689494,1713217845187,-1708.2,0.00031232,7]
[322689495,1713217845303,-500.0,0.00031232,7]
[322689496,1713217845313,-608.91,0.00031232,7]
[322689497,1713217845323,-1041.94,0.00031232,7]
[322689498,1713217845332,-500.0,0.00031232,7]
[322689499,1713217845342,-500.0,0.00031232,7]
[322689500,1713217845352,-13032.94,0.00031232,7]
[322689501,1713217845361,-500.0,0.00031232,7]
[322689502,1713217845370,-782.36,0.00031232,7]
[322689503,1713217845379,-500.0,0.00031232,7]
[322689504,1713217845389,-500.0,0.00031232,7]
[322689505,1713217845398,-891.7,0.00031232,7]
[322689506,1713217845408,-536.06,0.00031232,7]
[322689507,1713217845417,-500.0,0.00031232,7]
[322689508,1713217845426,-500.0,0.00031232,7]
[322689509,1713217845436,-709.53,0.00031232,7]
[322689510,1713217845445,-1888.84,0.00031232,7]
[322689511,1713217845455,-1858.51,0.00031232,7]
[322689512,1713217845464,-500.0,0.00031232,7]
[322689513,1713217845474,-715.8,0.00031232,7]
[322689514,1713217845483,-749.6,0.00031232,7]
[322689515,1713217845493,-500.0,0.00031232,7]
[322689516,1713217845502,-500.0,0.00031232,7]
[322689517,1713217845511,-500.0,0.00031232,7]
[322689518,1713217845520,-500.0,0.00031232,7]
[322689519,1713217845530,-500.0,0.00031232,7]
[322689520,1713217845538,-500.0,0.00031232,7]
[322689521,1713217845548,-500.0,0.00031232,7]
[322689522,1713217845558,-500.0,0.00031232,7]
[322689523,1713217845568,-500.0,0.00031232,7]
[322689524,1713217845580,-500.0,0.00031232,7]
[322689525,1713217845590,-500.0,0.00031232,7]
[322689526,1713217845601,-852.43,0.00031232,7]
[322689527,1713217845609,-500.0,0.00031232,7]
[322689528,1713217845619,-500.0,0.00031232,7]
[322689529,1713217845628,-3341.63,0.00031232,7]
[322689530,1713217845638,-2111.01,0.00031232,7]
[322689531,1713217845648,-500.0,0.00031232,7]
[322689532,1713217845657,-1091.16,0.00031232,7]
[322689533,1713217845666,-1238.66,0.00031232,7]
[322689534,1713217845676,-500.0,0.00031232,7]
[322689535,1713217845685,-500.0,0.00031232,7]
[322689536,1713217845695,-500.0,0.00031232,7]
[322689537,1713217845704,-500.0,0.00031232,7]
[322689538,1713217845714,-512.02,0.00031232,7]
[322689539,1713217845723,-621.69,0.00031232,7]
[322689540,1713217845732,-500.0,0.00031232,7]
[322689541,1713217845742,-532.25,0.00031232,7]
[322689542,1713217845751,-551.14693255,0.00031232,7]
[322689543,1713217845760,-1942.77,0.00031232,7]
[322689544,1713217845770,-500.0,0.00031232,7]
[322689546,1713217845779,-500.0,0.00031232,7]
[322689548,1713217845789,-8409.79,0.00031232,7]
[322689549,1713217845799,-693.14,0.00031232,7]
[322689551,1713217845808,-774.38,0.00031232,7]
[322689552,1713217845817,-1859.06,0.00031232,7]
[322689553,1713217845827,-960.29,0.00031232,7]
[322689554,1713217845836,-500.0,0.00031232,7]
[322689555,1713217845845,-996.72,0.00031232,7]
[322689556,1713217845856,-500.0,0.00031232,7]
[322689557,1713217845865,-373.45600589,0.00031232,7]
[322689558,1713217845874,-532.15,0.00031232,7]
[322689559,1713217845884,-1440.78,0.00031232,7]
[322689560,1713217845893,-645.97,0.00031232,7]
[322689561,1713217845902,-500.0,0.00031232,7]
[322689562,1713217845912,-1308.59,0.00031232,7]
[322689563,1713217845921,-2789.19,0.00031232,7]
[322689564,1713217845931,-2681.09,0.00031232,7]
[322689565,1713217845940,-962.04,0.00031232,7]
[322689566,1713217845949,-586.0,0.000313,2]
[322689567,1713217845959,-829.763,0.00031413,4]
[322689568,1713217845968,-829.763,0.00031413,4]
[322689569,1713217845977,-829.763,0.00031413,4]
[322689570,1713217845987,-829.763,0.00031413,4]
[322689571,1713217845996,-829.764,0.00031413,4]
[322689573,1713217846005,-500.0,0.00031506,7]
[322689574,1713217846015,-500.0,0.00031506,7]
[322689575,1713217846024,-959.1,0.00031506,7]
[322689577,1713217846033,-500.0,0.00031506,7]
[322689579,1713217846043,-500.0,0.00031506,7]
[322689580,1713217846052,-576.34,0.00031506,7]
[322689581,1713217846061,-1381.05,0.00031506,7]
[322689584,1713217846071,-510.77,0.00031506,7]
[322689587,1713217846080,-500.0,0.00031506,7]
[322689589,1713217846089,-1122.09,0.00031506,7]
[322689591,1713217846100,-500.0,0.00031506,7]
[322689593,1713217846109,-581.6014806,0.00031506,7]
[322689595,1713217846118,-395.04351217,0.00031506,7]
[322689597,1713217846127,-500.0,0.00031506,7]
[322689598,1713217846136,-500.0,0.00031506,7]
[322689599,1713217846144,-500.0,0.00031506,7]
[322689600,1713217846154,-643.62,0.00031506,7]
[322689601,1713217846163,-500.0,0.00031506,7]
[322689602,1713217846172,-500.0,0.00031506,7]
[322689603,1713217846181,-1286.94,0.00031506,7]
[322689604,1713217846191,-500.0,0.00031506,7]
[322689605,1713217846200,-951.22,0.00031506,7]
[322689606,1713217846209,-500.0,0.00031506,7]
[322689607,1713217846218,-506.9009558,0.00031506,7]
[322689608,1713217846227,-529.27,0.00031506,7]
[322689609,1713217846237,-513.71192368,0.00031506,7]
[322689610,1713217846246,-500.0,0.00031506,7]
[322689611,1713217846256,-880.22,0.00031506,7]
[322689612,1713217846265,-500.0,0.00031506,7]
[322689613,1713217846275,-511.65020668,0.00031506,7]
[322689614,1713217846285,-500.0,0.00031506,7]
[322689615,1713217846295,-500.61,0.00031506,7]
[322689616,1713217846304,-1402.37,0.00031506,7]
[322689617,1713217846313,-211.44704799,0.00031506,7]
[322689618,1713217846323,-500.0,0.00031506,7]
[322689619,1713217846332,-500.0,0.00031506,7]
[322689620,1713217846342,-500.0,0.00031506,7]
[322689621,1713217846352,-500.0,0.00031506,7]
[322689622,1713217846362,-500.0,0.00031506,7]
[322689623,1713217846371,-500.0,0.00031506,7]
[322689624,1713217846380,-730.09,0.00031506,7]
[322689625,1713217846390,-500.0,0.00031506,7]
[322689626,1713217846399,-734.85,0.00031506,7]
[322689627,1713217846408,-1101.24,0.00031506,7]
[322689628,1713217846418,-500.0,0.00031506,7]
[322689629,1713217846427,-500.0,0.00031506,7]
[322689630,1713217846437,-500.0,0.00031506,7]
[322689631,1713217846446,-500.0,0.00031506,7]
[322689632,1713217846455,-506.0,0.00031506,7]
[322689633,1713217846465,-500.0,0.00031506,7]
[322689634,1713217846475,-781.76,0.00031506,7]
[322689635,1713217846484,-687.89,0.00031506,7]
[322689636,1713217846493,-500.0,0.00031506,7]
[322689637,1713217846503,-500.0,0.00031506,7]
[322689638,1713217846513,-500.0,0.00031506,7]
[322689639,1713217846522,-1708.2,0.00031506,7]
[322689640,1713217846532,-500.0,0.00031506,7]
[322689641,1713217846541,-608.91,0.00031506,7]
[322689642,1713217846550,-1041.94,0.00031506,7]
[322689643,1713217846559,-500.0,0.00031506,7]
[322689644,1713217846568,-177.1365276,0.00031506,7]
[322689645,1713217846579,-13032.94,0.00031506,7]
[322689646,1713217846588,-782.36,0.00031506,7]
[322689647,1713217846597,-500.0,0.00031506,7]
[322689648,1713217846607,-500.0,0.00031506,7]
[322689649,1713217846618,-891.7,0.00031506,7]
[322689650,1713217846627,-536.06,0.00031506,7]
[322689651,1713217846636,-500.0,0.00031506,7]
[322689652,1713217846646,-500.0,0.00031506,7]
[322689653,1713217846656,-709.53,0.00031506,7]
[322689654,1713217846666,-1888.84,0.00031506,7]
[322689655,1713217846675,-1858.51,0.00031506,7]
[322689656,1713217846685,-500.0,0.00031506,7]
[322689657,1713217846695,-715.8,0.00031506,7]
[322689658,1713217846703,-749.6,0.00031506,7]
[322689659,1713217846712,-500.0,0.00031506,7]
[322689660,1713217846721,-500.0,0.00031506,7]
[322689661,1713217846731,-500.0,0.00031506,7]
[322689662,1713217846740,-500.0,0.00031506,7]
[322689663,1713217846750,-291.96593322,0.00031506,7]
[322689664,1713217846759,-500.0,0.00031506,7]
[322689665,1713217846768,-500.0,0.00031506,7]
[322689666,1713217846778,-500.0,0.00031506,7]
[322689667,1713217846786,-500.0,0.00031506,7]